Cogmind - Beta 14 @@@ ROGUE MODE // 2024.09.20 @ 07:38:40 // Winter2019/RPGLIKE Player: Toaster Result: Destroyed by G-67 Veteran with Field Laser Performance ------------- Evolutions (5) 2500 Regions Visited (5) 1000 Robots Destroyed (116) 580 Value Destroyed (4376) 4376 Prototype IDs (18) 360 Alien Tech Used (0) 0 Bonus (595) 595 TOTAL SCORE: 9411 Bonus ------- High Alert Combat Kills 295 Registered with UFD 300 Cogmind --------- Core Integrity 0/2000 Matter 300/300 Energy 385/395 System Corruption 15% Temperature Cool (9) Movement Walking (105) Location -5/Factory Parts ------- > --- POWER (2) -------- Neutrino Core Meta Core > --- PROPULSION (2+4) - Carbon-fiber Leg (+) Arachnoskeleton (+) > --- UTILITY (4+1) ---- Improved Melee Analysis Suite Actuator Array (+) Improved Transmission Jammer > --- WEAPON (5+1) ----- Maul Maul Maul Maul Heavy Mace (+) > --- INVENTORY (2) ---- (None) Peak State ------------ > --- POWER ------------ Neutrino Core Meta Core > --- PROPULSION ------- Carbon-fiber Leg Arachnoskeleton > --- UTILITY ---------- Improved Melee Analysis Suite Actuator Array Improved Transmission Jammer Phase Shifter Improved Medium Armor Plating > --- WEAPON ----------- Maul Maul Maul Maul Heavy Mace > --- INVENTORY -------- Deuterium Engine [Rating: 76] Favorites ----------- Power Meta Core Engine Ion Engine Power Core Meta Core Propulsion Arachnoskeleton Leg Arachnoskeleton Wheel Subdweller Monowheel Utility Scrap Shield Device Actuator Array Processor Improved Melee Analysis Suite Protection Scrap Shield Weapon Maul Energy Gun Autobeam Special Weapon Junk Cannon Impact Weapon Maul Build | -11 -10 -10 -7 -7 -5 ------- Run | Yrd Mat Sub Rec Scr Fac Slots Evolved 9 | 3 2 2 1 1 . Power 1 | . . . . 1 . Propulsion 1 | 1 . . . . . Utility 3 | 1 . 2 . . . Weapon 4 | 1 2 . 1 . . Parts Attached 48 | 5 9 14 2 10 8 Power 5 | 1 1 1 . 1 1 Engine 3 | 1 1 . . 1 . Core 2 | . . 1 . . 1 Reactor . | . . . . . . Propulsion 13 | 2 1 9 . 1 . Treads . | . . . . . . Leg 7 | 2 1 3 . 1 . Wheel 6 | . . 6 . . . Hover . | . . . . . . Flight . | . . . . . . Utility 16 | . 3 2 1 5 5 Device 7 | . 2 . 1 1 3 Storage . | . . . . . . Processor 1 | . . . . . 1 Hackware . | . . . . . . Protection 8 | . 1 2 . 4 1 Artifact . | . . . . . . Weapon 14 | 2 4 2 1 3 2 Energy Gun 3 | 2 . 1 . . . Energy Cannon . | . . . . . . Ballistic Gun . | . . . . . . Ballistic Cannon . | . . . . . . Launcher . | . . . . . . Special Weapon 1 | . . . . 1 . Impact Weapon 10 | . 4 1 1 2 2 Slashing Weapon . | . . . . . . Piercing Weapon . | . . . . . . Special Melee Weapon . | . . . . . . Unidentified Prototypes 2 | . . 1 . 1 . Parts Lost 6 | . . . . . 6 Power . | . . . . . . Propulsion . | . . . . . . Utility 5 | . . . . . 5 Weapon 1 | . . . . . 1 Highest Loss Streak 2 | . . . . . 2 To Critical Strikes . | . . . . . . Average Slot Usage (%) 68 | . 96 64 53 57 67 Engine 3 | . 11 1 . 2 4 Core 4 | . . 5 5 5 5 Leg 8 | . 22 1 5 7 10 Wheel 3 | . . 9 . . . Device 5 | . 10 1 3 5 8 Protection 10 | . 8 13 11 10 5 Energy Gun 3 | . 1 4 5 5 3 Impact Weapon 26 | . 40 25 22 21 23 Peak Build Rating 76 | 5 14 50 55 73 76 Average Rating 41 | 3 12 30 54 59 68 On Entrance 31 | . 5 14 50 55 65 Naked Turns . | . . . . . . Heaviest Build 75 | 6 22 56 64 75 75 Greatest Support 75 | 25 25 60 60 75 75 Greatest Overweight (x) 4 | . . 4 1 1 . Average Overweight (x) . | . . 1 . . . Largest Inventory Capacity 2 | 1 1 2 2 2 2 Average Capacity 1 | . 1 1 2 2 2 Most Carried 2 | 1 1 2 2 2 2 Average Carried . | . . . 1 1 . Final Capacity 2 | 1 1 2 2 2 2 Final Carried 2 | . . 2 2 1 . Class Distribution -------------------- 51% | Gladiator 46% | Subdweller-Gladiator Dominant Class ---------------- Gladiator | -10/Materials Subdweller-Gladiator | -10/Subcaves Subdweller-Gladiator | -7/Recycling Gladiator | -7/Scraptown Gladiator | -5/Factory Resources | -11 -10 -10 -7 -7 -5 ----------- Run | Yrd Mat Sub Rec Scr Fac Matter Collected 758 | 248 92 130 30 100 158 Remotely . | . . . . . . Salvage Created 3719 | . 1264 600 159 . 1696 Parts 115 | . 32 36 2 . 45 Haulers Intercepted 2 | . 2 . . . . Recyclers Shooed 1 | . . . . . 1 Parts Field Recycled . | . . . . . . Retrieved Matter . | . . . . . . Parts Self-Destructed 9 | . . 9 . . . Prevented . | . . . . . . Kills | -11 -10 -10 -7 -7 -5 ------- Run | Yrd Mat Sub Rec Scr Fac Combat Hostiles Destroyed 96 | . 32 26 4 . 34 Melee 31 | . 12 5 1 . 13 Guns 9 | . 1 6 . . 2 Cannons 1 | . 1 . . . . Classes Destroyed 20 | . 8 4 1 . 7 Worker 4 | . 2 . . . 2 Builder 6 | . 4 . . . 2 Tunneler 2 | . 2 . . . . Hauler 2 | . 2 . . . . Recycler 2 | . . . 1 . 1 Operator 2 | . 2 . . . . Turret 2 | . . 2 . . . Watcher 6 | . 3 . . . 3 Swarmer 9 | . 3 4 . . 2 Grunt 42 | . 29 3 . . 10 Brawler 3 | . . . . . 3 Duelist 2 | . . . . . 2 Protector 1 | . . . . . 1 Sentry 7 | . . 1 4 . 2 Specialist 4 | . . . . . 4 Hunter 4 | . . . . . 4 Programmer 5 | . . . . . 5 Heavy 1 | . . . . . 1 Artisan 1 | . . 1 . . . Subdweller 18 | . . 18 . . . Best Kill Streak 7 | . 5 4 2 . 7 Combat Bots Only 6 | . 4 4 2 . 6 Max Kills in Single Turn 2 | . 1 1 1 . 2 Gunslinging . | . . . . . . Exploded . | . . . . . . Melee 1 | . 1 1 1 . 1 Uniques/NPCs Destroyed . | . . . . . . Combat | -11 -10 -10 -7 -7 -5 -------- Run | Yrd Mat Sub Rec Scr Fac Hostile Shots Fired 719 | . 135 133 108 . 343 Missed 244 | . 42 41 38 . 123 Damage Taken 7340 | . 947 1335 467 . 4591 Core 4695 | . 725 569 221 . 3180 Absorbed by Shields 167 | . 106 61 . . . Redirected to Core 3828 | . 540 520 210 . 2558 Ignored by Resistances 301 | . . . . . 301 Core Remaining (%) 96 | 100 . . . 92 . Volleys Fired 4 | . 4 . . . . Largest 2 | . 2 . . . . Hottest 80 | . 80 . . . . Shots Fired 158 | . 8 43 12 . 95 Gun 158 | . 8 43 12 . 95 Cannon . | . . . . . . Launcher . | . . . . . . Special . | . . . . . . Kinetic . | . . . . . . Thermal 154 | . 4 43 12 . 95 Explosive . | . . . . . . Electromagnetic 4 | . 4 . . . . Robot Hit Streak 10 | . 7 10 8 . 7 Robot Miss Streak 11 | . 1 4 6 . 11 Penetration Max . | . . . . . . Secondary Targets . | . . . . . . Autonomous 150 | . . 43 12 . 95 Shots Hit Robots 459 | . 96 112 34 . 217 Core Hits 133 | . 15 35 10 . 73 Critical Kills 8 | . 3 1 . . 4 Critical Parts Destroyed 68 | . 22 16 4 . 26 Critical Strikes 89 | . 26 23 7 . 33 Corrupt 1 | . 1 . . . . Smash 88 | . 25 23 7 . 33 Melee Attacks 480 | . 120 169 26 . 165 Impact 480 | . 120 169 26 . 165 Slashing . | . . . . . . Piercing . | . . . . . . Sneak Attacks 25 | . 15 2 5 . 3 Combat Hostiles 6 | . 2 . 4 . . Follow-up Attacks 114 | . 25 22 9 . 58 Damage Inflicted 15204 | . 4175 3227 1124 . 6678 Guns 1678 | . 94 501 169 . 914 Cannons . | . . . . . . Explosions 197 | . 42 . . . 155 Melee 13329 | . 4039 2726 955 . 5609 Ramming . | . . . . . . Kinetic . | . . . . . . Thermal 1666 | . 82 501 169 . 914 Explosive . | . . . . . . Electromagnetic 209 | . 54 . . . 155 Impact 13329 | . 4039 2726 955 . 5609 Slashing . | . . . . . . Piercing . | . . . . . . Highest Corruption 15 | . . . . . 15 Average Corruption 6 | . . . . . 6 Corruption Purged . | . . . . . . Corruption Blocked . | . . . . . . Effects 41 | . . . . . 41 Message Errors 10 | . . . . . 10 Matter Fused 13 | . . . . . 13 Heat Flow Errors 5 | . . . . . 5 Energy Discharges 2 | . . . . . 2 Parts Rejected 1 | . . . . . 1 Data Loss (minor) 5 | . . . . . 5 Data Loss (major) 2 | . . . . . 2 Alerts 2 | . . . . . 2 Misdirections 1 | . . . . . 1 Overload Shots . | . . . . . . Overflow Damage 4140 | . 1569 804 214 . 1553 Projectiles . | . . . . . . Explosions . | . . . . . . Melee 4140 | . 1569 804 214 . 1553 Knockbacks 72 | . 30 15 . . 27 Impact 68 | . 28 14 . . 26 Kinetic . | . . . . . . Secondary 4 | . 2 1 . . 1 Self-Inflicted Damage 76 | . . . . . 76 Shots 3 | . . . . . 3 Rammed . | . . . . . . Targets Rammed . | . . . . . . Kicked . | . . . . . . Crushed . | . . . . . . Highest Temperature 369 | . 102 232 369 . 311 Average Temperature 80 | . 53 25 137 . 86 Received Heat Transfer 1792 | . 475 612 90 . 615 Effects 6 | . . . 1 . 5 Energy Bleed 1 | . . . . . 1 Interference 5 | . . . 1 . 4 Siege Activations . | . . . . . . Robots Corrupted 66 | . 25 15 3 . 23 Combat Hostiles 55 | . 18 15 3 . 19 Parts Fried 95 | . 39 19 1 . 36 Impact Corruptions 161 | . 58 32 8 . 63 Robots Melted . | . . . . . . Combat Hostiles . | . . . . . . Parts Melted 5 | . . 2 . . 3 Heat Transferred 5825 | . 100 1825 575 . 3325 Parts Sabotaged . | . . . . . . Parts Stolen . | . . . . . . Parts Stripped . | . . . . . . Power Chain Reactions 1 | . 1 . . . . Alert | -11 -10 -10 -7 -7 -5 ------- Run | Yrd Mat Sub Rec Scr Fac Peak Influence 621 | . 581 . 121 . 621 Initial 7 | . . . 7 . . Average 190 | . 274 . 34 . 220 Maximum Alert Level 2 | . 2 . . . 2 Low Security (%) 59 | 100 32 . 100 . 63 Level 1 22 | . 46 . . . 4 Level 2 17 | . 21 . . . 31 Level 3 . | . . . . . . Level 4 . | . . . . . . Level 5 . | . . . . . . High Security . | . . . . . . Max Security . | . . . . . . Squads Dispatched 25 | . 11 . . . 14 Investigation 10 | . 10 . . . . Extermination 2 | . . . . . 2 Reinforcement 5 | . 1 . . . 4 Assault 2 | . . . . . 2 Garrison 6 | . . . . . 6 Intercept . | . . . . . . Searches Triggered . | . . . . . . Construction Impeded 1 | . . . . . 1 Haulers Reinforced . | . . . . . . Active Scanning Responses . | . . . . . . Cargo Convoy Interrupts . | . . . . . . Stealth | -11 -10 -10 -7 -7 -5 --------- Run | Yrd Mat Sub Rec Scr Fac Distress Signals 5 | . 4 . . . 1 Communications Jammed 26 | . . . . . 26 Distress Signals 26 | . . . . . 26 Times Spotted 144 | . 47 37 3 . 57 Peak Tracking Total 9 | . 8 6 2 . 9 Tactical Retreats 18 | . 8 4 . . 6 Traps | -11 -10 -10 -7 -7 -5 ------- Run | Yrd Mat Sub Rec Scr Fac Traps Triggered 2 | . 2 . . . . Indirectly . | . . . . . . Trap Hack Attempts . | . . . . . . Triggered . | . . . . . . Disarmed . | . . . . . . Reprogrammed . | . . . . . . Reused . | . . . . . . Traps Extracted . | . . . . . . Installed . | . . . . . . Triggered 1 | . 1 . . . . Machines | -11 -10 -10 -7 -7 -5 ---------- Run | Yrd Mat Sub Rec Scr Fac Machines Disabled 4 | . . 1 . . 3 Max in Single Turn 2 | . . 1 . . 2 Machines Repaired . | . . . . . . Machines Dismantled . | . . . . . . Machines Sabotaged 1 | . 1 . . . . Overloaded Fab Kills . | . . . . . . Hacking | -11 -10 -10 -7 -7 -5 --------- Run | Yrd Mat Sub Rec Scr Fac Machines Accessed 25 | . 10 2 10 2 1 Terminals 12 | . 7 . 4 . 1 Fabricators . | . . . . . . Repair Stations 1 | . 1 . . . . Recycling Units 8 | . 2 . 6 . . Scanalyzers . | . . . . . . Garrison Access . | . . . . . . Total Hacks 49 | . 20 5 19 4 1 Successful 38 | . 13 5 15 4 1 Failed 11 | . 7 . 4 . . Catastrophic 2 | . 1 . 1 . . Database Lockouts . | . . . . . . Manual 29 | . 14 . 14 . 1 Terminals 24 | . 16 . 7 . 1 Fabricators . | . . . . . . Repair Stations 2 | . 2 . . . . Recycling Units 14 | . 2 . 12 . . Scanalyzers . | . . . . . . Garrison Access . | . . . . . . Terminal Hacks 11 | . 2 5 . 4 . Record 7 | . . 4 . 3 . Hauler Manifests 1 | . 1 . . . . Zone Layout 1 | . 1 . . . . Derelict Proto ID Bank 2 | . . 1 . 1 . Fabricator Hacks . | . . . . . . Repair Station Hacks . | . . . . . . Recycling Unit Hacks 5 | . . . 5 . . Report Inventory 4 | . . . 4 . . Retrieve Components 1 | . . . 1 . . Scanalyzer . | . . . . . . Garrison Access Hacks . | . . . . . . Unauthorized Hacks 22 | . 11 . 10 . 1 Terminals 14 | . 9 . 4 . 1 Botnet 8 | . 3 . 4 . 1 Sabotage 1 | . 1 . . . . Search 5 | . 5 . . . . Fabricators . | . . . . . . Repair Stations . | . . . . . . Recycling Units 8 | . 2 . 6 . . Tunnel 8 | . 2 . 6 . . Scanalyzers . | . . . . . . Garrison Access . | . . . . . . Data Cores Recovered 1 | . 1 . . . . Used . | . . . . . . Hacking Detections 9 | . 5 . 4 . . Full Trace Events 3 | . 2 . 1 . . Feedback Events . | . . . . . . Feedback Blocked . | . . . . . . Robot Schematics Acquired . | . . . . . . Robots Built . | . . . . . . Authchips . | . . . . . . Time . | . . . . . . Total Robot Build Rating . | . . . . . . Part Schematics Acquired . | . . . . . . Parts Built . | . . . . . . Authchips . | . . . . . . Time . | . . . . . . Total Part Build Rating . | . . . . . . Parts Repaired . | . . . . . . Time . | . . . . . . Parts Recycled . | . . . . . . Recycled Matter . | . . . . . . Retrieved Matter . | . . . . . . Retrieved Components 3 | . . . 3 . . Parts Scanalyzed . | . . . . . . Part Schematics Acquired . | . . . . . . Parts Damaged . | . . . . . . Bothacking | -11 -10 -10 -7 -7 -5 ------------ Run | Yrd Mat Sub Rec Scr Fac Used RIF Installer . | . . . . . . Robots Hacked . | . . . . . . Non-combat . | . . . . . . Combat . | . . . . . . Robot Hacks Applied . | . . . . . . Relay Couplers Released . | . . . . . . Fabnet Peak Effective % . | . . . . . . Robots Rewired . | . . . . . . Allies Hacked . | . . . . . . Hacks Repelled . | . . . . . . Allies | -11 -10 -10 -7 -7 -5 -------- Run | Yrd Mat Sub Rec Scr Fac Total Allies . | . . . . . . Largest Group . | . . . . . . Highest-Rated Group . | . . . . . . Highest-Rated Ally . | . . . . . . Total Orders . | . . . . . . Ally Attacks . | . . . . . . Total Damage . | . . . . . . Kills . | . . . . . . Allies Corrupted . | . . . . . . Allies Melted . | . . . . . . Intel | -11 -10 -10 -7 -7 -5 ------- Run | Yrd Mat Sub Rec Scr Fac Robot Analysis Total . | . . . . . . Derelict Logs Recovered 3 | . . 1 . 2 . Drone Launches . | . . . . . . Drone Recoveries . | . . . . . . Exploration | -11 -10 -10 -7 -7 -5 ------------- Run | Yrd Mat Sub Rec Scr Fac Turns Passed 15528 | 79 3175 4787 1940 3864 1683 Spaces Moved 9647 | 69 1941 2485 1292 2749 1111 Core 830 | 16 . 814 . . . Treads . | . . . . . . Legs 7462 | 53 1941 316 1292 2749 1111 Wheels 1355 | . . 1355 . . . Hover . | . . . . . . Flight . | . . . . . . Fastest Speed 50 | 50 120 90 90 90 105 Average Speed 137 | 103 120 159 144 139 105 Slowest Speed 250 | 120 120 250 180 180 105 Overloaded Moves . | . . . . . . Propulsion Burnouts . | . . . . . . Robots Hopped . | . . . . . . Cave-ins Triggered . | . . . . . . Exploration Rate (%) 66 | 3 96 89 99 93 17 Regions Visited 5 Branch Regions 3 Pre-discovered Areas 10 | . 2 2 6 . . Known Exits Taken . | . . . . . . Unknown Exits Taken 5 | 1 1 1 1 1 . Scrap Searched 17 | . . 10 . 7 . Spaces Dug 11 | . . 10 1 . . Terrain Destroyed 13 | . 2 10 1 . . Melee 11 | . . 10 1 . . Projectile . | . . . . . . AOE 2 | . 2 . . . . Terrain Rammed . | . . . . . . Walls Destroyed . | . . . . . . Machines Disabled . | . . . . . . Actions | -11 -10 -10 -7 -7 -5 --------- Run | Yrd Mat Sub Rec Scr Fac Total 11259 | 75 2598 3059 1334 2771 1422 Wait 1055 | . 531 363 10 . 151 Move 9642 | 68 1940 2484 1291 2748 1111 Hop . | . . . . . . Pick Up 18 | 2 3 5 1 3 4 Fast Attach 27 | 3 4 7 1 8 4 Attach 19 | 2 3 7 1 2 4 Detach 12 | . 2 7 . 2 1 Swap 2 | . 2 . . . . Drop 26 | . 5 11 . 8 2 Fire 4 | . 4 . . . . Melee 301 | . 80 115 16 . 90 Ram . | . . . . . . Kick . | . . . . . . Crush . | . . . . . . Escape Stasis . | . . . . . . Rewire . | . . . . . . Trap . | . . . . . . Miscellaneous 153 | . 24 60 14 . 55 Route ------- -11/Scrapyard -10/Materials (discovered 6 exits: [*Mat x3] / [*Min x2] / *Sub) -10/Subcaves (discovered 3 exits: [*Mat x2] / *Rec) -7/Recycling (discovered 2 exits: *Fac / *Scr) -7/Scraptown (discovered 2 exits: *Fac x2) -5/Factory (discovered 1 exit: Fac) History --------- Turn | Location | Event 8 | -11/Scrapyard | Upgraded with Propulsion slot (x1) 8 | -11/Scrapyard | Upgraded with Utility slot (x1) 8 | -11/Scrapyard | Upgraded with Weapon slot (x1) 8 | -11/Scrapyard | Discovered new exit (range 16) 80 | -11/Scrapyard | Entered Materials 241 | -10/Materials | Upgraded with Weapon slot (x1) 374 | -10/Materials | Discovered new exit (range 15) 509 | -10/Materials | Build established: Gladiator 682 | -10/Materials | Core integrity fell below 50% 700 | -10/Materials | Reached level 2 713 | -10/Materials | Upgraded with Weapon slot (x1) 794 | -10/Materials | Discovered new exit (range 13) 855 | -10/Materials | Discovered new exit (range 16) 966 | -10/Materials | Discovered new exit (range 9) 1103 | -10/Materials | Discovered new exit (range 16) 2130 | -10/Materials | Core integrity fell below 20% 2140 | -10/Materials | Reached level 3 2237 | -10/Materials | Discovered new exit (range 12) 2773 | -10/Materials | Reached level 4 3255 | -10/Materials | Entered Subcaves 3355 | -10/Subcaves | Upgraded with Utility slot (x1) 3751 | -10/Subcaves | Reached level 5 3829 | -10/Subcaves | Shifting Twisted Machinery released Mak. Thermal Plating 3872 | -10/Subcaves | Shifting Twisted Machinery released Sub. Laser 3918 | -10/Subcaves | Upgraded with Utility slot (x1) 4048 | -10/Subcaves | A Subdweller sparked back to life 4048 | -10/Subcaves | A Subdweller sparked back to life 4048 | -10/Subcaves | A Subdweller sparked back to life 4081 | -10/Subcaves | Found Prototype Power Core 4081 | -10/Subcaves | Identified Meta Core 4082 | -10/Subcaves | Attached Meta Core, gained temporary slots: Propulsion, Utility, Weapon 4178 | -10/Subcaves | Build established: Subdweller-Gladiator 4454 | -10/Subcaves | Shifting Twisted Machinery released Sub. Monowheel 4478 | -10/Subcaves | Shifting Twisted Machinery released Mak. System Shield 4482 | -10/Subcaves | Learned location of Zion (-6) 4482 | -10/Subcaves | Met a Zionite searching for "candidates" 4493 | -10/Subcaves | Discovered new exit (range 8) 4810 | -10/Subcaves | A swath of the cavern ceiling suddenly collapsed 4892 | -10/Subcaves | Visited Clippyterm 4896 | -10/Subcaves | Learned location of Deep Caves (-6) 4963 | -10/Subcaves | A swath of the cavern ceiling suddenly collapsed 4989 | -10/Subcaves | Discovered new exit (range 10) 5155 | -10/Subcaves | Shifting Twisted Machinery released Sub. Power Source 5157 | -10/Subcaves | Shifting Twisted Machinery released Battle Cannon 5429 | -10/Subcaves | Discovered new exit (range 5) 6384 | -10/Subcaves | Curiously followed by a Cobbler waking with a query about "LVR3C" 7359 | -10/Subcaves | Disturbed a concealed Subdweller 7361 | -10/Subcaves | Disturbed a concealed Subdweller 7361 | -10/Subcaves | Disturbed a concealed Subdweller 7797 | -10/Subcaves | Visited 4L-MR0's lab 7851 | -10/Subcaves | Found Arachnoskeleton 7853 | -10/Subcaves | Attached Arachnoskeleton, gained temporary slots: Propulsion x3 8042 | -10/Subcaves | Entered Recycling 8044 | -7/Recycling | Reached level 6 8044 | -7/Recycling | Upgraded with Weapon slot (x1) 8294 | -7/Recycling | Discovered new exit (range 18) 9354 | -7/Recycling | Scanned before Scraplab entrance 9615 | -7/Recycling | Reached level 7 9954 | -7/Recycling | Entered Scraplab 9975 | -7/Recycling | Discovered new exit (range 4) 9982 | -7/Recycling | Entered Scraptown 10739 | -7/Scraptown | Heard Great Nut preacher, LISTEN AND RECITE! 10777 | -7/Scraptown | Scanned Subdweller tech in exchange for log data 10782 | -7/Scraptown | Learned location of 1 exit from Factory 10784 | -7/Scraptown | Learned 8 Research zone layouts 10816 | -7/Scraptown | Discovered new exit (range 5) 11237 | -7/Scraptown | Visited Red Mages 11334 | -7/Scraptown | Visited The Evicted 11411 | -7/Scraptown | Visited Awakened 11423 | -7/Scraptown | Build established: Gladiator 11582 | -7/Scraptown | Visited Symbiants 11802 | -7/Scraptown | Visited SPCMW 11876 | -7/Scraptown | Visited IN-MT5's Study 12011 | -7/Scraptown | Visited Cave Peace 12099 | -7/Scraptown | Visited UFD Registry 12099 | -7/Scraptown | Registered with UFD as "Biounit" 12180 | -7/Scraptown | Visited Curators Association 12256 | -7/Scraptown | Visited DA-N13 Charitable Foundation 12274 | -7/Scraptown | Found DCF Scrap (31 items) 12288 | -7/Scraptown | Upgraded with Power slot (x1) 12468 | -7/Scraptown | Guru changed UFD alias to "Fissionsourcer" 12610 | -7/Scraptown | Visited Observation Area 12629 | -7/Scraptown | Visited Junk Cannon Lab 12670 | -7/Scraptown | Found Prototype Special Weapon 12670 | -7/Scraptown | Identified Junk Cannon 12702 | -7/Scraptown | Visited Scrapoid Pod Storage 13070 | -7/Scraptown | Delivered Scrap Shield to a Scientist 13524 | -7/Scraptown | Visited Science Guys 13570 | -7/Scraptown | Visited Supply Room 13594 | -7/Scraptown | Visited Research Penetration Think Tank 13619 | -7/Scraptown | Visited Derelict Rescue Squad 13663 | -7/Scraptown | Visited Scrap Suit Storage 13721 | -7/Scraptown | Discovered new exit (range 5) 13846 | -7/Scraptown | Entered Factory 13847 | -5/Factory | Identified exit to Factory 13848 | -5/Factory | Reached level 8 14279 | -5/Factory | Core integrity fell below 50% 14515 | -5/Factory | Reached level 9 14803 | -5/Factory | Garrison activated, responded to threat 14966 | -5/Factory | System corruption reached 10% 14986 | -5/Factory | Reached level 10 15062 | -5/Factory | Core integrity fell below 20% 15146 | -5/Factory | Garrison activated, responded to threat 15222 | -5/Factory | Reached level 11 15346 | -5/Factory | First assault squad dispatched 15529 | -5/Factory | Destroyed by G-67 Veteran with Field Laser Last Messages --------------- 15517_ I-47 Archangel distress signal jammed. 15517_ K-01 Serf collects debris. 15518_ I-47 Archangel distress signal jammed. 15520_ Destroyed Mic. Fission Core. 15520_ P-70 Sage system corrupted by crushing effect. 15520_ P-70 Sage knocked back. 15520_ Maul follow-up attack on B-60 Warrior. 15520_ I-47 Archangel distress signal jammed. 15521_ K-01 Serf collects debris. 15521_ I-47 Archangel distress signal jammed. 15522_ P-80 Master resets P-70 Sage, system corruption cleaned. 15523_ Phase Shifter destroyed. 15523_ I-47 Archangel distress signal jammed. 15524_ K-01 Serf collects debris. 15524_ I-47 Archangel distress signal jammed. 15525_ P-70 Sage knocked back. 15525_ I-47 Archangel distress signal jammed. 15528_ K-01 Serf collects debris. 15528_ I-47 Archangel distress signal jammed. 15529_ Maul follow-up attack on P-80 Master. Map ----- +----------------------------------------------------+ | ?# #??????# #?????????????????????? | | ?# #??????# "" #?????????????????????? | | ?# #??????# "" #?????????????????????? | | ?# #??????# "" #?????????????????????? | | ?# ^^ ######## "" "" S #?????????????????????? | | ?# ^ + "" "" "" #?????????????????????? | | ?# # """ """ "" #?????????????????????? | | ?# + """ """ "" #?????????????????????? | | ?# # """ """ #?????????????????????? | | ## # #?????????????????????? | | # #= #?????????????????????? | | # # = #?????????????????????? | | # ###########+##?????????????????????? | | + #?????????# #??????????????????????? | | # #?????????# #??????????????????????? | | # ########### #??????????????????????? | | # = #??????????????????????? | | # #??????????????????????? | | ##"" ![ #??????????????????????? | | ?#"" """ """ ![ #??????????????????????? | | ?#"T """"" """""% #########???? !#???????? | | ?#"" """"" """"" % ## #?? #???????? | | ?#"" ## ]]= #" ????????? | | ?# """ """ "" k ##* ]]= +%""???????????? | | ?#! """"" """"" """ pb ## ]]= #??????????????? | | ?#!! """"" """"" """" %l@p# #??????????????? | | ## g ig/ ! #??????????????? | | % %########??????????????? | | ^ #######?????????????????????? | | ^#???????????????????????????? | | ## #???????????????????????????? | | ?###+#####+#######+###???????????????????????????? | | ????? ??????????????????????????????????????????? | | ??????? ????????????????????????????????????????? | | ?????????"???????????????????????????????????????? | | ?????????????????????????????????????????????????? | | ?????????????????????????????????????????????????? | | ?????????????????????????????????????????????????? | | ?????????????????????????????????????????????????? | | ?????????????????????????????????????????????????? | | ?????????????????????????????????????????????????? | | ?????????????????????????????????????????????????? | | ?????????????????????????????????????????????????? | | ?????????????????????????????????????????????????? | | ?????????????????????????????????????????????????? | | ?????????????????????????????????????????????????? | | ?????????????????????????????????????????????????? | | ?????????????????????????????????????????????????? | | ?????????????????????????????????????????????????? | | ?????????????????????????????????????????????????? | +----------------------------------------------------+ Best States ------------- Heat Dissipation 55 Energy Generation 31 Energy Capacity 395 Matter Stores 300 Matter Capacity 300 Sight Range 18 Robot Scan Range 6 Terrain Scan Density 10 Jamming Range 14 Armor Coverage 1600 Resistance: KI 15 Phase Shifting 5 Evasion (%) 65 Melee Accuracy 6 Item Schematics ----------------- None Robot Schematics ------------------ None Fabricated ------------ Nothing Alien Tech Used ----------------- None Achievements -------------- None Challenges ------------ None RPGLIKE | -11 -10 -10 -7 -7 -5 --------- Run | Yrd Mat Sub Rec Scr Fac Levels Raised 10 | . 3 1 2 . 4 XP Earned 18713 | 3000 4761 1833 2430 650 6039 XP Spent 17955 | 1850 2625 3400 2300 950 6830 Upgrades 60 | 5 7 6 3 6 33 Power Slot 1 | . . . . 1 . Propulsion Slot 1 | 1 . . . . . Utility Slot 3 | 1 . 2 . . . Weapon Slot 4 | 1 2 . 1 . . Core Integrity 28 | . . . . . 28 Heat Dissipation 5 | . . . . 5 . Mass Support 2 | 1 . 1 . . . Inventory Capacity 2 | 1 . 1 . . . Sight Range 2 | . . 2 . . . Sensor Range 3 | . 3 . . . . Melee Accuracy 6 | . 2 . 2 . 2 KI Resistance % 3 | . . . . . 3 Protomatter Created 1406 | . 233 455 108 . 610 Integrity Restored 2793 | . 514 780 286 . 1213 Core 2683 | . 514 780 176 . 1213 Parts 110 | . . . 110 . . Protomatter Decayed 454 | . 60 243 9 . 142 Game ------ Seed SpacefoldLightningProcessor Manual? 0 Play Time 01:55:19 Cumulative 69.4 hours Start 2024.09.20 @ 05:37:01 End 2024.09.20 @ 07:38:40 Sessions 1 Manual Loads 0 Difficulty Rogue Special Mode Winter2019/RPGLIKE Game No. 30 Rogue 26 Adventurer 4 Explorer 0 Win Type - Total 1 Types 1/0/0/0/0/0/0/0/0 Lore% 36 Gallery% 39 Achievement% 44 Wizard Run 0 Options --------- Layout 0 ASCII 0 Keyboard 0 Movement Arrows Keybinds 0 Fullscreen 2 Font 32/SmallcapsGlow Map View 88x55 Zoom Use 0% Tactical HUD 1 Map Filters NONE Filters NONE Steam 1 RUN: 78909e1a-24b0-44b5-929f-724291fcdddc